fUST/lending_fUST_20250723
["ID","MTS","AMOUNT","RATE_DAILY","PERIOD"]
[374099976,1753205444225,-168.0,0.0002085,2]
[374099977,1753205444235,-500.0,0.00020871,2]
[374099978,1753205444244,-6439.84575086,0.00020887,2]
[374099979,1753205444254,-460.0,0.00020941,2]
[374099980,1753205444263,-907.3,0.00020942,2]
[374099981,1753205444272,-733.85,0.00020942,2]
[374099982,1753205444281,-677.83,0.00020942,2]
[374099983,1753205444290,-466.33,0.00020942,2]
[374099984,1753205444299,-468.59,0.00020943,2]
[374099985,1753205444308,-651.86,0.00020943,2]
[374099986,1753205444317,-887.54,0.00020943,2]
[374099987,1753205444326,-851.76,0.00020945,2]
[374099989,1753205444335,-548.96860606,0.00020945,2]
[374099990,1753205444345,-460.0,0.00020945,2]
[374099991,1753205444354,-580.78,0.00020945,2]
[374099993,1753205444363,-916.73,0.00020945,2]
[374099995,1753205444373,-111464.30388153,0.00021,2]
[374099997,1753205444384,-3000.0,0.000211,2]
[374099999,1753205444394,-3000.0,0.0002111,2]
[374100001,1753205444404,-3000.0,0.0002112,2]
[374100003,1753205444413,-3000.0,0.0002113,2]
[374100005,1753205444423,-3000.0,0.0002114,2]
[374100007,1753205444433,-500.0,0.00021145,2]
[374100009,1753205444443,-3000.0,0.0002115,2]
[374100011,1753205444452,-151.0,0.0002115,2]
[374100013,1753205444462,-151.0,0.0002115,2]
[374100015,1753205444471,-151.0,0.0002115,2]
[374100018,1753205444481,-151.0,0.0002115,2]
[374100019,1753205444490,-151.0,0.0002115,2]
[374100021,1753205444499,-151.0,0.0002115,2]
[374100023,1753205444508,-151.0,0.0002115,2]
[374100025,1753205444518,-151.0,0.0002115,2]
[374100027,1753205444528,-3000.0,0.0002116,2]
[374100029,1753205444538,-3000.0,0.0002117,2]
[374100031,1753205444548,-3000.0,0.0002118,2]
[374100033,1753205444557,-168.0,0.00021184,2]
[374100035,1753205444566,-3000.0,0.0002119,2]
[374100037,1753205444575,-168.0,0.00021198,2]
[374100039,1753205444585,-3000.0,0.000212,2]
[374100041,1753205444594,-3000.0,0.0002121,2]
[374100043,1753205444603,-460.0,0.00021215,2]
[374100045,1753205444613,-907.3,0.00021216,2]
[374100047,1753205444622,-733.85,0.00021216,2]
[374100049,1753205444632,-677.83,0.00021216,2]
[374100051,1753205444641,-466.33,0.00021216,2]
[374100053,1753205444650,-468.59,0.00021217,2]
[374100055,1753205444659,-651.86,0.00021217,2]
[374100057,1753205444668,-887.54,0.00021217,2]
[374100059,1753205444684,-851.76,0.00021219,2]
[374100061,1753205444693,-460.0,0.00021219,2]
[374100063,1753205444703,-580.78,0.00021219,2]
[374100065,1753205444712,-916.73,0.00021219,2]
[374100067,1753205444722,-3000.0,0.0002122,2]
[374100069,1753205444731,-175.779188,0.0002122,2]
[374100071,1753205444741,-151.0,0.0002122,2]
[374100073,1753205444751,-151.0,0.0002122,2]
[374100075,1753205444761,-151.0,0.0002122,2]
[374100077,1753205444771,-3000.0,0.0002123,2]
[374100079,1753205444781,-3000.0,0.0002124,2]
[374100081,1753205444790,-3000.0,0.0002125,2]
[374100083,1753205444799,-3000.0,0.0002126,2]
[374100085,1753205444809,-3000.0,0.0002127,2]
[374100087,1753205444818,-3000.0,0.0002128,2]
[374100089,1753205444827,-3000.0,0.0002129,2]
[374100091,1753205444836,-3000.0,0.000213,2]
[374100093,1753205444845,-223.0315306,0.00021302,2]
[374100095,1753205444854,-3000.0,0.0002131,2]
[374100097,1753205444863,-168.0,0.00021312,2]
[374100099,1753205444873,-168.0,0.00021319,2]
[374100101,1753205444882,-3000.0,0.0002132,2]
[374100103,1753205444891,-3000.0,0.0002133,2]
[374100105,1753205444901,-3188.457764,0.0002134,2]
[374100107,1753205444910,-422.99041966,0.0002139,2]
[374100109,1753205444919,-2017.0,0.00021412,2]
[374100111,1753205444928,-500.0,0.00021419,2]
[374100113,1753205444938,-168.0,0.00021435,2]
[374100115,1753205444947,-648.0,0.0002147,2]
[374100117,1753205444956,-407.0,0.0002147,2]
[374100119,1753205444966,-2157.0,0.0002147,2]
[374100121,1753205444975,-168.0,0.00021485,2]
[374100123,1753205444984,-460.0,0.00021489,2]
[374100125,1753205444994,-800.0,0.0002149,2]
[374100137,1753205445092,-907.3,0.0002149,2]
[374100139,1753205445102,-733.85,0.0002149,2]
[374100141,1753205445112,-677.83,0.0002149,2]
[374100143,1753205445121,-466.33,0.0002149,2]
[374100145,1753205445130,-468.59,0.00021491,2]
[374100147,1753205445142,-651.86,0.00021491,2]
[374100149,1753205445151,-887.54,0.00021491,2]
[374100150,1753205445161,-851.76,0.00021493,2]
[374100153,1753205445170,-460.0,0.00021493,2]
[374100155,1753205445179,-580.78,0.00021493,2]
[374100156,1753205445188,-916.73,0.00021493,2]
[374100158,1753205445198,-2214.94518694,0.000215,2]
[374100160,1753205445207,-168.0,0.00021501,2]
[374100162,1753205445216,-168.0,0.00021639,2]
[374100164,1753205445226,-151.0,0.00021676,5]
[374100167,1753205445236,-500.0,0.00021693,2]
[374100168,1753205445245,-460.0,0.00021763,2]
[374100171,1753205445255,-907.3,0.00021764,2]
[374100172,1753205445265,-733.85,0.00021764,2]
[374100175,1753205445275,-677.83,0.00021764,2]
[374100177,1753205445284,-466.33,0.00021764,2]
[374100179,1753205445293,-468.59,0.00021765,2]
[374100182,1753205445302,-651.86,0.00021765,2]
[374100185,1753205445311,-887.54,0.00021765,2]
[374100187,1753205445321,-851.76,0.00021767,2]
[374100189,1753205445330,-285.49956273,0.00021767,2]
[374100190,1753205445339,-580.78,0.00021767,2]
[374100193,1753205445348,-916.73,0.00021767,2]
[374100196,1753205445358,-716.0,0.00021939,2]
[374100199,1753205445367,-500.0,0.00021967,2]
[374100201,1753205445376,-306.97,0.00022,7]
[374100203,1753205445388,-3452.93,0.00022,7]
[374100205,1753205445398,-518.48,0.00022,7]
[374100207,1753205445408,-27730.8,0.00022,2]
[374100208,1753205445417,-155.366239,0.00022,7]
[374100210,1753205445427,-151.847431,0.00022,7]
[374100213,1753205445438,-151.95371,0.00022,2]
[374100215,1753205445447,-151.0,0.00022,7]
[374100217,1753205445456,-151.0,0.00022,7]
[374100219,1753205445465,-151.0,0.00022,7]
[374100220,1753205445474,-151.0,0.00022,7]
[374100223,1753205445483,-151.0,0.00022,7]
[374100224,1753205445492,-172.0,0.00022,2]
[374100226,1753205445502,-460.0,0.00022037,2]
[374100229,1753205445511,-907.3,0.00022038,2]
[374100230,1753205445520,-733.85,0.00022038,2]
[374100233,1753205445529,-677.83,0.00022038,2]
[374100234,1753205445539,-466.33,0.00022038,2]
[374100237,1753205445548,-468.59,0.00022039,2]
[374100238,1753205445557,-651.86,0.00022039,2]
[374100240,1753205445566,-152.029843,0.00022039,7]
[374100243,1753205445576,-151.0,0.00022039,7]
[374100245,1753205445585,-151.0,0.00022039,7]
[374100247,1753205445594,-151.0,0.00022039,7]
[374100248,1753205445604,-151.0,0.00022039,7]
[374100251,1753205445614,-151.0,0.00022039,7]
[374100253,1753205445624,-151.0,0.00022039,7]
[374100255,1753205445634,-887.54,0.00022039,2]
[374100257,1753205445643,-851.76,0.00022041,2]
[374100259,1753205445653,-580.78,0.00022041,2]
[374100261,1753205445663,-916.73,0.00022041,2]
[374100262,1753205445673,-168.0,0.00022084,2]
[374100264,1753205445684,-151.0,0.00022132,5]
[374100266,1753205445694,-168.0,0.00022157,2]
[374100269,1753205445703,-172.0,0.00022192,7]
[374100271,1753205445713,-500.0,0.00022241,2]
[374100273,1753205445723,-150.0,0.0002227,2]
[374100275,1753205445732,-150.0,0.0002227,2]
[374100277,1753205445741,-460.0,0.00022311,2]
[374100279,1753205445750,-907.3,0.00022312,2]
[374100281,1753205445761,-733.85,0.00022312,2]
[374100282,1753205445772,-677.83,0.00022312,2]
[374100285,1753205445781,-466.33,0.00022312,2]
[374100286,1753205445790,-468.59,0.00022313,2]
[374100288,1753205445800,-651.86,0.00022313,2]
[374100291,1753205445809,-887.54,0.00022313,2]
[374100293,1753205445819,-851.76,0.00022315,2]
[374100295,1753205445828,-580.78,0.00022315,2]
[374100297,1753205445838,-916.73,0.00022315,2]
[374100299,1753205445847,-399.78022,0.00022339,2]
[374100301,1753205445857,-1950.72,0.00022465,2]
[374100303,1753205445866,-500.0,0.00022515,2]
[374100305,1753205445875,-582.77,0.00022579,4]
[374100306,1753205445885,-245.93540976,0.00022585,2]
[374100308,1753205445894,-907.3,0.00022586,2]
[374100310,1753205445903,-733.85,0.00022586,2]
[374100313,1753205445913,-677.83,0.00022586,2]
[374100314,1753205445922,-466.33,0.00022586,2]
[374100317,1753205445932,-468.59,0.00022587,2]
[374100318,1753205445942,-151.0,0.00022587,7]
[374100321,1753205445953,-151.0,0.00022587,7]
[374100323,1753205445963,-151.0,0.00022587,7]
[374100324,1753205445972,-651.86,0.00022587,2]
[374100326,1753205445983,-362.986687,0.00022587,7]
[374100328,1753205445992,-362.986687,0.00022587,7]
[374100330,1753205446002,-1044.239207,0.00022587,7]
[374100332,1753205446011,-1044.239207,0.00022587,7]
[374100334,1753205446021,-350.064902,0.00022587,7]
[374100337,1753205446030,-350.064902,0.00022587,7]
[374100338,1753205446040,-151.465729,0.00022587,7]
[374100340,1753205446049,-260.007,0.00022587,7]
[374100342,1753205446058,-887.54,0.00022587,2]
[374100344,1753205446068,-151.0,0.00022587,7]
[374100346,1753205446078,-851.76,0.00022589,2]
[374100349,1753205446087,-151.0,0.00022589,5]
[374100351,1753205446096,-580.78,0.00022589,2]
[374100353,1753205446106,-916.73,0.00022589,2]
[374100355,1753205446115,-231.28369723,0.00022671,2]
[374100356,1753205446125,-151.0,0.00022679,7]
[374100359,1753205446134,-151.0,0.00022679,7]
[374100361,1753205446143,-582.77,0.00022679,5]
[374100363,1753205446153,-151.0,0.00022779,7]
[374100365,1753205446163,-151.0,0.00022779,7]
[374100367,1753205446176,-582.7776,0.00022779,2]
[374100369,1753205446185,-1047.71744529,0.0002278,2]
[374100371,1753205446195,-500.0,0.00022789,2]
[374100373,1753205446205,-907.3,0.0002286,2]
[374100375,1753205446215,-733.85,0.0002286,2]
[374100377,1753205446225,-677.83,0.0002286,2]
[374100379,1753205446234,-466.33,0.0002286,2]
[374100381,1753205446244,-468.59,0.00022861,2]
[374100383,1753205446253,-651.86,0.00022861,2]
[374100385,1753205446263,-887.54,0.00022861,2]
[374100387,1753205446272,-851.76,0.00022863,2]
[374100389,1753205446281,-580.78,0.00022863,2]
[374100391,1753205446290,-916.73,0.00022863,2]
[374100393,1753205446299,-136780.15680692,0.00022929,2]
[374100395,1753205446310,-151.0,0.00022929,7]
[374100397,1753205446319,-151.0,0.00022929,7]
[374100399,1753205446330,-151.0,0.00022929,7]
[374100401,1753205446342,-151.0,0.00022929,7]
[374100403,1753205446351,-152.083839,0.00022929,7]
[374100405,1753205446361,-151.0,0.00022929,7]
[374100407,1753205446370,-151.0,0.00022929,7]
[374100409,1753205446379,-151.0,0.00022929,7]
[374100411,1753205446391,-151.0,0.00022929,7]
[374100413,1753205446400,-268.312637,0.00022929,7]
[374100415,1753205446410,-151.0,0.00022929,7]
[374100417,1753205446419,-151.0,0.00022929,7]
[374100419,1753205446429,-151.0,0.00022929,7]
[374100421,1753205446438,-151.0,0.00022929,7]
[374100424,1753205446447,-151.0,0.00022929,7]
[374100426,1753205446459,-151.0,0.00022929,7]
[374100428,1753205446469,-151.0,0.00022929,7]
[374100430,1753205446478,-244.863184,0.00022929,7]
[374100432,1753205446487,-151.0,0.00022929,7]
[374100434,1753205446497,-151.0,0.00022929,7]
[374100436,1753205446506,-151.0,0.00022929,7]
[374100438,1753205446515,-151.0,0.00022929,7]
[374100440,1753205446525,-151.0,0.00022929,7]
[374100442,1753205446534,-362.986687,0.00022929,7]
[374100444,1753205446544,-362.986687,0.00022929,7]
[374100446,1753205446553,-1044.239207,0.00022929,7]
[374100448,1753205446562,-1044.239207,0.00022929,7]
[374100450,1753205446572,-151.0,0.00022929,7]
[374100452,1753205446581,-151.0,0.00022929,7]
[374100454,1753205446594,-350.064902,0.00022929,7]
[374100456,1753205446603,-350.064902,0.00022929,7]
[374100458,1753205446613,-151.0,0.00022929,7]
[374100460,1753205446623,-151.0,0.00022929,7]
[374100462,1753205446632,-151.0,0.00022929,7]
[374100464,1753205446643,-151.0,0.00022929,7]
[374100466,1753205446652,-151.0,0.00022929,7]
[374100468,1753205446661,-151.0,0.00022929,7]
[374100470,1753205446671,-151.0,0.00022929,7]
[374100472,1753205446685,-151.0,0.00022929,7]
[374100474,1753205446694,-500.0,0.00022973,2]
[374100477,1753205446704,-9810.06450645,0.00023,2]
[374100478,1753205446713,-28383.84669877,0.00023,2]
[374100480,1753205446724,-160.0,0.00023,2]
[374100482,1753205446733,-331.6760189,0.00023,2]
[374100484,1753205446742,-172.0,0.00023014,7]
[374100486,1753205446753,-151.0,0.00023045,6]
[374100488,1753205446762,-500.0,0.00023063,2]
[374100490,1753205446771,-518.48,0.000231,7]
[374100492,1753205446781,-27730.8,0.000231,2]
[374100494,1753205446790,-907.37952066,0.00023133,2]
[374100496,1753205446799,-734.08373115,0.00023133,2]
[374100499,1753205446808,-677.89526121,0.00023133,2]
[374100500,1753205446818,-466.52556373,0.00023133,2]
[374100502,1753205446827,-468.74775696,0.00023135,2]
[374100505,1753205446837,-651.95996318,0.00023135,2]
[374100507,1753205446846,-887.75493028,0.00023135,2]
[374100509,1753205446855,-916.76314511,0.00023136,2]
[374100511,1753205446864,-851.76,0.00023137,2]
[374100513,1753205446873,-580.78,0.00023137,2]
[374100515,1753205446883,-297.0,0.00023151,9]
[374100517,1753205446893,-306.97,0.000232,7]
[374100518,1753205446902,-3452.93,0.000232,7]
[374100521,1753205446911,-154.9988728,0.00023251,2]
[374100523,1753205446920,-208.36212605,0.00023337,2]
[374100525,1753205446930,-1000.0,0.00023384,5]
[374100526,1753205446939,-151.0,0.000234,10]
[374100528,1753205446949,-851.78733408,0.00023411,2]
[374100531,1753205446958,-580.97807052,0.00023411,2]
[374100533,1753205446968,-151.0,0.00023501,6]
[374100534,1753205446979,-800.0,0.00023682,2]
[374100537,1753205446989,-244.7634,0.00023708,2]
[374100539,1753205446997,-171.33438,0.00023708,2]
[374100540,1753205447006,-864.6144,0.00023749,2]
[374100542,1753205447016,-349.662,0.00023759,2]
[374100544,1753205447026,-151.0,0.000239,7]
[374100547,1753205447035,-543.23263395,0.000239,2]
[374100548,1753205447044,-151.0,0.00023957,7]
[374100551,1753205447054,-1145.48,0.00024,2]
[374100552,1753205447063,-9815.0,0.00024,30]
[374100555,1753205447072,-99386.29361592,0.00024,2]
[374100557,1753205447082,-151.0,0.00024,7]
[374100559,1753205447091,-152.175719,0.00024,7]
[374100560,1753205447101,-151.0,0.00024,7]
[374100563,1753205447110,-151.0,0.00024,7]
[374100564,1753205447119,-151.0,0.00024,7]
[374100566,1753205447128,-151.0,0.00024,7]
[374100568,1753205447139,-151.0,0.00024,7]
[374100571,1753205447149,-151.0,0.00024,7]
[374100573,1753205447158,-151.0,0.00024,7]
[374100575,1753205447167,-151.0,0.00024,7]
[374100577,1753205447176,-151.0,0.00024,7]
[374100579,1753205447185,-151.0,0.00024,7]
[374100581,1753205447195,-151.0,0.00024,7]
[374100583,1753205447204,-191.524113,0.00024,7]
[374100585,1753205447213,-151.0,0.00024,7]
[374100587,1753205447223,-151.0,0.00024,7]
[374100589,1753205447232,-151.0,0.00024,7]
[374100591,1753205447241,-151.0,0.00024,7]
[374100593,1753205447250,-362.986687,0.00024,7]
[374100594,1753205447259,-362.986687,0.00024,7]
[374100597,1753205447269,-1044.239207,0.00024,7]
[374100599,1753205447278,-1044.239207,0.00024,7]
[374100600,1753205447287,-232.841339,0.00024,7]
[374100602,1753205447297,-151.0,0.00024,7]
[374100604,1753205447306,-350.064902,0.00024,7]
[374100606,1753205447316,-350.064902,0.00024,7]
[374100608,1753205447325,-151.0,0.00024,7]
[374100610,1753205447334,-151.0,0.00024,7]
[374100612,1753205447344,-151.0,0.00024,7]
[374100623,1753205447353,-151.0,0.00024,7]
[374100625,1753205447447,-160.0,0.00024,7]
[374100627,1753205447457,-151.0,0.00024,7]
[374100629,1753205447467,-174.890221,0.00024,7]
[374100631,1753205447476,-1000.0,0.00024,2]
[374100633,1753205447486,-1000.0,0.00024,2]
[374100635,1753205447495,-1000.0,0.00024,2]
[374100637,1753205447504,-1000.0,0.00024,2]
[374100639,1753205447514,-1000.0,0.00024,2]
[374100641,1753205447523,-1000.0,0.00024,2]
[374100643,1753205447532,-1000.0,0.00024,2]
[374100645,1753205447541,-1000.0,0.00024,2]
[374100647,1753205447551,-1000.0,0.00024,2]
[374100649,1753205447560,-1000.0,0.00024,2]
[374100651,1753205447569,-1000.0,0.00024,2]
[374100653,1753205447578,-1000.0,0.00024,2]
[374100655,1753205447588,-1000.0,0.00024,2]
[374100657,1753205447597,-1000.0,0.00024,2]
[374100659,1753205447606,-1000.0,0.00024,2]
[374100661,1753205447616,-1000.0,0.00024,2]
[374100663,1753205447625,-472.84,0.00024,2]
[374100665,1753205447634,-251.40456,0.00024,7]
[374100667,1753205447644,-500.0,0.00024027,30]
[374100669,1753205447653,-239.84119403,0.0002404,2]
[374100671,1753205447663,-423.090988,0.00024046,2]
[374100673,1753205447673,-175.0,0.00024164,7]
[374100675,1753205447684,-151.0,0.000242,6]
[374100677,1753205447694,-150.793548,0.00024249,2]
[374100679,1753205447703,-5000.0,0.00024326,3]
[374100681,1753205447713,-518.48,0.000244,7]
[374100683,1753205447723,-151.0,0.000244,9]
[374100685,1753205447732,-998.33443192,0.00024411,12]
[374100687,1753205447742,-151.0,0.00024414,7]
[374100689,1753205447752,-647.0,0.0002447,2]
[374100691,1753205447761,-407.0,0.0002447,2]
[374100693,1753205447771,-2157.0,0.0002447,2]
[374100695,1753205447780,-27730.8,0.000245,2]
[374100697,1753205447789,-1001.37064921,0.000245,3]
[374100699,1753205447799,-643.0,0.000245,2]
[374100701,1753205447808,-58470.34846006,0.0002465,2]
[374100703,1753205447817,-155.0,0.00024657,2]
[374100705,1753205447826,-200.63612521,0.00024658,2]
[374100707,1753205447835,-280.0,0.00024658,2]
[374100709,1753205447844,-186.0760109,0.00024658,2]
[374100711,1753205447854,-489.0,0.00024658,2]
[374100713,1753205447863,-489.0,0.00024658,2]
[374100715,1753205447872,-151.39265493,0.00024658,2]
[374100717,1753205447881,-3452.93,0.000247,7]
[374100719,1753205447895,-594.0250547,0.0002477,2]
[374100728,1753205447972,-760.18,0.0002477,2]
[374100734,1753205448012,-460.0,0.00016832,2]
[374100736,1753205448022,-102.0749161,0.00018201,2]
[374100738,1753205448035,-1484.4350839,0.00018201,2]
[374100740,1753205448045,-1586.51,0.00018475,2]
[374100742,1753205448055,-1043.42784054,0.00018749,2]
[374100745,1753205448066,-543.08215946,0.00018749,2]
[374100747,1753205448075,-1539.87798773,0.00019023,2]
[374100752,1753205448116,-336.92244762,0.00016833,2]
[374100754,1753205448128,-123.07755238,0.00016833,2]
[374100756,1753205448141,-46.63201227,0.00019023,2]
[374100758,1753205448151,-84.74904141,0.00019297,2]
[374102266,1753205520107,19766.68913776,0.00016732,2]
[374102267,1753205520130,20000.0,0.00016732,2]
[374102268,1753205520152,20000.0,0.00016732,2]
[374102269,1753205520177,20000.0,0.00016732,2]
[374102270,1753205520200,20000.0,0.00016732,2]
[374102271,1753205520223,20000.0,0.00016732,2]
[374102272,1753205520248,20000.0,0.00016732,2]
[374102273,1753205520278,20000.0,0.00016732,2]
[374102274,1753205520300,20000.0,0.00016732,2]
[374102275,1753205520321,20000.0,0.00016732,2]
[374102276,1753205520343,20000.0,0.00016732,2]
[374102277,1753205520365,20000.0,0.00016732,2]
[374102278,1753205520572,20000.0,0.00016732,2]
[374102279,1753205520602,20000.0,0.00016732,2]
[374102280,1753205520624,20000.0,0.00016732,2]
[374102281,1753205520646,20000.0,0.00016732,2]
[374102282,1753205520668,20000.0,0.00016732,2]
[374102283,1753205520690,20000.0,0.00016732,2]
[374102284,1753205520721,10233.31086224,0.00016732,2]
[374102285,1753205635292,150.0,0.00019623,30]
[374102287,1753205676567,155.377944,6.8e-07,2]
[374102288,1753205676677,155.377944,6.8e-07,2]
[374102289,1753205676791,155.377944,6.8e-07,2]
[374102290,1753205676892,155.377944,6.8e-07,2]
[374102291,1753205679485,155.377944,6.8e-07,2]
[374102292,1753205679594,155.377944,6.8e-07,2]
[374102293,1753205679720,155.377944,6.8e-07,2]
[374102294,1753205679846,155.377944,6.8e-07,2]
[374102295,1753205680299,8523.66558576,0.00016587,2]
[374102296,1753205680321,1476.33441424,0.00016587,2]
[374102297,1753205703143,2769.379999,0.000162,2]
[374102378,1753205848576,274.64549198,0.00016652,2]
[374102395,1753205897839,484.301205,0.00013699,2]
[374102398,1753205979250,211.545494,0.00015921,2]
[374102399,1753205980693,155.37794396,6.8e-07,2]
[374102402,1753206089560,14628.41545182,0.00015833,2]
[374102403,1753206089585,10271.58454818,0.00015833,2]
[374102405,1753206120286,150.0,0.00018927,30]
[374102406,1753206269114,150.0,0.0001896,30]
[374102407,1753206342833,150.0,0.00019004,30]
[374102414,1753206414807,150.0,0.00019242,30]
[374102415,1753206449427,258.4629371,0.00016396,2]
[374102416,1753206451607,275.35889586,0.00016396,2]
[374102417,1753206493087,150.0,0.00019226,30]
[374102418,1753206493605,150.0,0.00020974,30]
[374102421,1753206566262,150.0,0.00019352,30]
[374102422,1753206567873,1226.7529785,0.00015959,2]
[374102447,1753206632072,-460.0,0.00016828,2]
[374102448,1753206632082,-416.29052739,0.00016828,2]
[374102449,1753206632096,-43.70947261,0.00016828,2]
[374102450,1753206632106,-300.0,0.00016828,2]
[374102451,1753206632116,-1200.0,0.00016828,2]
[374102452,1753206632125,-300.0,0.00016828,2]
[374102454,1753206632134,-460.0,0.00016829,2]
[374102456,1753206632144,-460.0,0.00016829,2]
[374102457,1753206632155,-460.0,0.00016829,2]
[374102459,1753206632165,-460.0,0.00016829,2]
[374102460,1753206632174,-345.60457733,0.00016829,2]
[374102654,1753206638248,-114.39542267,0.00016829,2]
[374102655,1753206638257,-463.72857891,0.00016829,2]
[374102656,1753206638267,-460.0,0.00016829,2]
[374102657,1753206638276,-460.0,0.00016829,2]
[374102658,1753206638285,-460.0,0.00016829,2]
[374102659,1753206638294,-588.64146714,0.00016829,2]
[374102660,1753206638304,-460.0,0.00016829,2]
[374102661,1753206638314,-460.0,0.00016829,2]
[374102662,1753206638323,-460.0,0.00016829,2]
[374102663,1753206638332,-460.0,0.00016829,2]
[374102664,1753206638341,-460.0,0.00016829,2]
[374102665,1753206638351,-460.0,0.00016829,2]
[374102666,1753206638360,-460.0,0.00016829,2]
[374102667,1753206638371,-460.0,0.00016829,2]
[374102668,1753206638380,-460.0,0.00016829,2]
[374102669,1753206638389,-460.0,0.00016829,2]
[374102670,1753206638399,-460.0,0.00016829,2]
[374102671,1753206638409,-460.0,0.00016829,2]
[374102672,1753206638419,-604.29,0.00016829,2]
[374102673,1753206638427,-1039.63,0.00016829,2]
[374102674,1753206638436,-292.48494615,0.00016829,2]
[374102675,1753206638446,-19364.43255773,0.00016829,2]
[374102676,1753206638455,-460.0,0.0001683,2]
[374102677,1753206638464,-460.0,0.0001683,2]
[374102678,1753206638473,-460.0,0.0001683,2]
[374102679,1753206638482,-1204.69,0.0001683,2]
[374102680,1753206638492,-460.0,0.0001683,2]
[374102681,1753206638502,-460.0,0.0001683,2]
[374102682,1753206638511,-460.0,0.0001683,2]
[374102683,1753206638520,-461.62527926,0.0001683,2]
[374102684,1753206638530,-427.06258271,0.0001683,2]
[374102685,1753206638539,-460.0,0.0001683,2]
[374102686,1753206638549,-460.0,0.0001683,2]
[374102687,1753206638558,-460.0,0.0001683,2]
[374102688,1753206638568,-460.0,0.0001683,2]
[374102689,1753206638577,-460.0,0.0001683,2]
[374102690,1753206638587,-460.0,0.0001683,2]
[374102691,1753206638596,-460.0,0.0001683,2]
[374102692,1753206638606,-460.0,0.0001683,2]
[374102693,1753206638616,-460.0,0.0001683,2]
[374102694,1753206638626,-460.0,0.0001683,2]
[374102695,1753206638635,-460.0,0.0001683,2]
[374102696,1753206638645,-460.0,0.0001683,2]
[374102697,1753206638656,-460.0,0.0001683,2]
[374102698,1753206638666,-496.27,0.0001683,2]
[374102699,1753206638686,-460.0,0.0001683,2]
[374102700,1753206638696,-460.0,0.0001683,2]
[374102701,1753206638706,-460.0,0.0001683,2]
[374102702,1753206638717,-460.0,0.0001683,2]
[374102703,1753206638728,-460.0,0.0001683,2]
[374102704,1753206638738,-460.0,0.0001683,2]
[374102705,1753206638749,-460.0,0.0001683,2]
[374102706,1753206638759,-460.0,0.0001683,2]
[374102707,1753206638770,-460.0,0.0001683,2]
[374102708,1753206638780,-546.34278475,0.0001683,2]
[374102709,1753206638790,-460.0,0.0001683,2]
[374102710,1753206638799,-460.0,0.0001683,2]
[374102711,1753206638809,-343.23801622,0.0001683,2]
[374102712,1753206638819,-460.0,0.0001683,2]
[374102713,1753206638829,-460.0,0.0001683,2]
[374102714,1753206638839,-460.0,0.0001683,2]
[374102715,1753206638849,-460.0,0.0001683,2]
[374102716,1753206638859,-460.0,0.0001683,2]